[Event "Swedish Chess Championship 2019: Minior-SM"]
[Site "Stiga Sports Arena, Arenatorget 1, Eskilstuna, Sweden, Sweden"]
[Date "2019.07.10"]
[Round "4.6"]
[White "Muntean, Felix"]
[Black "Seo, Jung Hyun"]
[Result "0-1"]
[TimeControl "90 minutes for 40 moves + 30 minutes for the rest of the game + 30 seconds per move from move one"]
[WhiteFideId "1054465"]
[BlackFideId "1735667"]
[WhiteElo "1377"]
[BlackElo "1575"]

1. e4 {[%clk 01:30:55]} {[%emt 00:00:04]} e6 {[%clk 01:30:57]} {[%emt
00:00:04]} 2. d4 {[%clk 01:31:17]} {[%emt 00:00:08]} d5 {[%clk 01:31:23]}
{[%emt 00:00:03]} 3. e5 {[%clk 01:31:43]} {[%emt 00:00:05]} c5 {[%clk
01:31:50]} {[%emt 00:00:03]} 4. c3 {[%clk 01:32:00]} {[%emt 00:00:13]} Nc6
{[%clk 01:32:16]} {[%emt 00:00:04]} 5. Nf3 {[%clk 01:32:01]} {[%emt 00:00:28]}
Bd7 {[%clk 01:32:43]} {[%emt 00:00:03]} 6. Be3 {[%clk 01:32:16]} {[%emt
00:00:14]} Qb6 {[%clk 01:33:01]} {[%emt 00:00:13]} 7. Qd2 {[%clk 01:30:46]}
{[%emt 00:02:00]} a6 {[%clk 01:30:35]} {[%emt 00:02:56]} 8. b3 {[%clk
01:30:57]} {[%emt 00:00:18]} Rc8 {[%clk 01:30:19]} {[%emt 00:00:46]} 9. g3
{[%clk 01:30:55]} {[%emt 00:00:31]} cxd4 {[%clk 01:29:48]} {[%emt 00:01:02]} 10.
Bxd4 {[%clk 01:30:56]} {[%emt 00:00:29]} Nxd4 {[%clk 01:30:11]} {[%emt
00:00:06]} 11. Nxd4 {[%clk 01:31:07]} {[%emt 00:00:19]} Ne7 {[%clk 01:30:15]}
{[%emt 00:00:27]} 12. Bg2 {[%clk 01:31:09]} {[%emt 00:00:28]} Nc6 {[%clk
01:30:27]} {[%emt 00:00:18]} 13. O-O {[%clk 01:29:37]} {[%emt 00:02:00]} Bc5
{[%clk 01:29:33]} {[%emt 00:01:25]} 14. Nxc6 {[%clk 01:29:48]} {[%emt
00:00:19]} Bxc6 {[%clk 01:29:55]} {[%emt 00:00:08]} 15. b4 {[%clk 01:30:14]}
{[%emt 00:00:04]} Be7 {[%clk 01:29:56]} {[%emt 00:00:28]} 16. a4 {[%clk
01:27:21]} {[%emt 00:03:24]} O-O {[%clk 01:28:56]} {[%emt 00:01:30]} 17. Qf4
{[%clk 01:26:10]} {[%emt 00:01:40]} Rfd8 {[%clk 01:28:11]} {[%emt 00:01:15]} 18.
Rd1 {[%clk 01:25:25]} {[%emt 00:01:15]} Be8 {[%clk 01:25:05]} {[%emt 00:03:37]}
19. h4 {[%clk 01:24:29]} {[%emt 00:01:25]} Rc4 {[%clk 01:20:57]} {[%emt
00:04:39]} 20. a5 {[%clk 01:21:26]} {[%emt 00:03:33]} Qa7 {[%clk 01:18:15]}
{[%emt 00:03:12]} 21. Qe3 {[%clk 01:13:10]} {[%emt 00:08:46]} Qxe3 {[%clk
01:18:24]} {[%emt 00:00:22]} 22. fxe3 {[%clk 01:13:24]} {[%emt 00:00:16]} g5
{[%clk 01:18:23]} {[%emt 00:00:31]} 23. h5 {[%clk 01:10:43]} {[%emt 00:03:11]}
f6 {[%clk 01:18:44]} {[%emt 00:00:10]} 24. Bf1 {[%clk 01:07:27]} {[%emt
00:03:45]} Bxh5 {[%clk 01:18:11]} {[%emt 00:01:04]} 25. Bxc4 {[%clk 01:06:51]}
{[%emt 00:01:06]} Bxd1 {[%clk 01:18:31]} {[%emt 00:00:10]} 26. exf6 {[%clk
01:06:41]} {[%emt 00:00:39]} Bxf6 {[%clk 01:18:38]} {[%emt 00:00:24]} 27. Bd3
{[%clk 01:06:11]} {[%emt 00:00:59]} Bh5 {[%clk 01:17:36]} {[%emt 00:01:32]} 28.
Ra2 {[%clk 01:05:54]} {[%emt 00:00:47]} Rc8 {[%clk 01:17:50]} {[%emt 00:00:16]}
29. Rc2 {[%clk 01:04:49]} {[%emt 00:01:35]} Kg7 {[%clk 01:17:22]} {[%emt
00:00:59]} 30. b5 {[%clk 01:03:39]} {[%emt 00:01:39]} Bg6 {[%clk 01:16:45]}
{[%emt 00:01:07]} 31. Bxg6 {[%clk 01:03:50]} {[%emt 00:00:19]} Kxg6 {[%clk
01:17:10]} {[%emt 00:00:05]} 32. bxa6 {[%clk 01:02:01]} {[%emt 00:02:19]} bxa6
{[%clk 01:17:34]} {[%emt 00:00:06]} 33. Rb2 {[%clk 01:01:47]} {[%emt 00:00:44]}
Rc5 {[%clk 01:17:50]} {[%emt 00:00:14]} 34. Rb6 {[%clk 00:59:29]} {[%emt
00:02:48]} Rxa5 {[%clk 01:18:14]} {[%emt 00:00:06]} 35. Rxe6 {[%clk 00:58:31]}
{[%emt 00:01:27]} Kf5 {[%clk 01:18:22]} {[%emt 00:00:23]} 36. Rb6 {[%clk
00:57:43]} {[%emt 00:01:18]} Be5 {[%clk 01:18:44]} {[%emt 00:00:08]} 37. Kf2
{[%clk 00:57:10]} {[%emt 00:01:03]} Rb5 {[%clk 01:18:05]} {[%emt 00:01:09]} 38.
Rxb5 {[%emt 00:00:53]} axb5 {[%clk 01:18:31]} {[%emt 00:00:04]} 39. Na3 {[%clk
00:57:06]} {[%emt 00:00:11]} Kg4 {[%clk 01:18:20]} {[%emt 00:00:41]} 40. Nxb5
{[%clk 00:56:47]} {[%emt 00:00:49]} Bxg3+ {[%clk 01:18:45]} {[%emt 00:00:05]}
41. Kg2 {[%clk 00:56:53]} {[%emt 00:00:24]} Be5 {[%clk 01:18:38]} {[%emt
00:00:35]} 42. e4 {[%clk 00:55:58]} {[%emt 00:01:26]} dxe4 {[%clk 01:19:02]}
{[%emt 00:00:07]} 43. c4 {[%clk 00:56:18]} {[%emt 00:00:10]} h5 {[%clk
01:19:19]} {[%emt 00:00:13]} 44. c5 {[%clk 00:56:39]} {[%emt 00:00:10]} h4
{[%clk 01:19:44]} {[%emt 00:00:06]} 45. c6 {[%clk 00:57:05]} {[%emt 00:00:03]}
h3+ {[%clk 01:20:04]} {[%emt 00:00:10]} 46. Kh1 {[%clk 00:57:23]} {[%emt
00:00:12]} e3 {[%clk 01:20:04]} {[%emt 00:00:31]} 47. Nd4 {[%clk 00:57:45]}
{[%emt 00:00:08]} Kh5 {[%clk 01:18:58]} {[%emt 00:01:35]} 48. Ne2 {[%clk
00:56:25]} {[%emt 00:01:49]} g4 {[%clk 01:18:33]} {[%emt 00:00:56]} 49. Nd4
{[%clk 00:54:25]} {[%emt 00:02:30]} Bxd4 {[%clk 01:18:29]} {[%emt 00:00:33]} 50.
c7 {[%clk 00:45:52]} {[%emt 00:09:03]} e2 {[%clk 01:18:54]} {[%emt 00:00:05]}
51. c8=Q {[%clk 00:45:46]} {[%emt 00:00:36]} e1=Q+ {[%clk 01:19:19]} {[%emt
00:00:05]} 52. Kh2 {[%clk 00:45:57]} {[%emt 00:00:19]} Be5# {[%emt 00:00:12]}
0-1

[Event "Swedish Chess Championship 2019: Minior-SM"]
[Site "Stiga Sports Arena, Arenatorget 1, Eskilstuna, Sweden, Sweden"]
[Date "2019.07.11"]
[Round "5.1"]
[White "Enholm, Herman"]
[Black "Falkevall, Axel"]
[Result "1/2-1/2"]
[TimeControl "90 minutes for 40 moves + 30 minutes for the rest of the game + 30 seconds per move from move one"]
[WhiteFideId "1744500"]
[BlackFideId "1735560"]
[WhiteElo "1695"]
[BlackElo "2067"]

1. d4 {[%clk 01:30:55]} {[%emt 00:00:04]} Nf6 {[%clk 01:30:49]} {[%emt
00:00:11]} 2. c4 {[%clk 01:31:09]} {[%emt 00:00:16]} e6 {[%clk 01:31:14]}
{[%emt 00:00:05]} 3. Nc3 {[%clk 01:31:18]} {[%emt 00:00:20]} Bb4 {[%clk
01:31:39]} {[%emt 00:00:06]} 4. Qc2 {[%clk 01:31:12]} {[%emt 00:00:36]} Nc6
{[%clk 01:32:03]} {[%emt 00:00:05]} 5. Nf3 {[%clk 01:31:08]} {[%emt 00:00:34]}
d6 {[%clk 01:32:19]} {[%emt 00:00:14]} 6. Bg5 {[%clk 01:30:13]} {[%emt
00:01:24]} O-O {[%clk 01:32:12]} {[%emt 00:00:39]} 7. e3 {[%clk 01:29:36]}
{[%emt 00:01:07]} h6 {[%clk 01:32:14]} {[%emt 00:00:27]} 8. Bh4 {[%clk
01:29:16]} {[%emt 00:00:50]} e5 {[%clk 01:32:00]} {[%emt 00:00:45]} 9. d5
{[%clk 01:25:09]} {[%emt 00:04:36]} Nb8 {[%clk 01:32:15]} {[%emt 00:00:16]} 10.
Be2 {[%clk 01:22:39]} {[%emt 00:02:59]} Nbd7 {[%clk 01:31:44]} {[%emt
00:01:01]} 11. O-O {[%clk 01:21:30]} {[%emt 00:01:38]} Bxc3 {[%clk 01:31:18]}
{[%emt 00:00:57]} 12. bxc3 {[%clk 01:15:39]} {[%emt 00:06:21]} Nc5 {[%clk
01:25:07]} {[%emt 00:06:40]} 13. Nd2 {[%clk 01:06:27]} {[%emt 00:09:42]} Qe7
{[%clk 01:06:43]} {[%emt 00:18:55]} 14. e4 {[%clk 01:03:21]} {[%emt 00:03:36]}
g5 {[%clk 01:00:29]} {[%emt 00:06:44]} 15. Bg3 {[%clk 01:02:19]} {[%emt
00:01:31]} Ncxe4 {[%clk 00:54:46]} {[%emt 00:06:16]} 16. Nxe4 {[%clk 01:01:17]}
{[%emt 00:01:31]} Nxe4 {[%clk 00:54:47]} {[%emt 00:00:28]} 17. Qxe4 {[%clk
01:01:27]} {[%emt 00:00:20]} f5 {[%clk 00:54:52]} {[%emt 00:00:25]} 18. Qf3
{[%clk 00:58:01]} {[%emt 00:03:55]} f4 {[%clk 00:53:29]} {[%emt 00:01:54]} 19.
Qh5 {[%clk 00:57:31]} {[%emt 00:00:59]} Qg7 {[%clk 00:51:35]} {[%emt 00:02:24]}
20. Rab1 {[%clk 00:41:16]} {[%emt 00:16:46]} b6 {[%clk 00:47:18]} {[%emt
00:04:47]} 21. Bd3 {[%clk 00:34:05]} {[%emt 00:07:40]} Bf5 {[%clk 00:43:57]}
{[%emt 00:03:51]} 22. Bxf5 {[%clk 00:33:26]} {[%emt 00:01:10]} Rxf5 {[%clk
00:44:19]} {[%emt 00:00:08]} 23. Qg4 {[%clk 00:19:25]} {[%emt 00:14:31]} Raf8
{[%clk 00:40:15]} {[%emt 00:04:34]} 24. f3 {[%clk 00:16:14]} {[%emt 00:03:41]}
fxg3 {[%clk 00:38:51]} {[%emt 00:01:54]} 25. hxg3 {[%clk 00:16:27]} {[%emt
00:00:17]} Qg6 {[%clk 00:33:29]} {[%emt 00:05:49]} 26. c5 {[%clk 00:13:31]}
{[%emt 00:03:30]} dxc5 {[%clk 00:29:45]} {[%emt 00:04:14]} 27. Qa4 {[%clk
00:13:26]} {[%emt 00:00:35]} a5 {[%clk 00:28:55]} {[%emt 00:01:20]} 28. Rbd1
{[%clk 00:12:12]} {[%emt 00:01:43]} Qd6 {[%clk 00:25:36]} {[%emt 00:03:41]} 29.
f4 {[%clk 00:06:57]} {[%emt 00:05:54]} gxf4 {[%clk 00:16:17]} {[%emt 00:09:49]}
30. gxf4 {[%clk 00:06:53]} {[%emt 00:00:33]} Rxf4 {[%clk 00:15:09]} {[%emt
00:01:39]} 31. Rxf4 {[%clk 00:07:05]} {[%emt 00:00:18]} Rxf4 {[%clk 00:14:53]}
{[%emt 00:00:46]} 32. Qe8+ {[%clk 00:06:52]} {[%emt 00:00:44]} Kh7 {[%clk
00:14:26]} {[%emt 00:00:52]} 33. Rd3 {[%clk 00:05:57]} {[%emt 00:01:29]} Rf8
{[%clk 00:11:49]} {[%emt 00:03:04]} 34. Qh5 {[%clk 00:05:09]} {[%emt 00:01:22]}
Qg6 {[%clk 00:09:49]} {[%emt 00:02:29]} 35. Qh3 {[%clk 00:04:15]} {[%emt
00:01:25]} Qf5 {[%clk 00:04:06]} {[%emt 00:06:13]} 36. d6 {[%clk 00:00:43]}
{[%emt 00:04:02]} Qxh3 {[%clk 00:03:42]} {[%emt 00:00:54]} 37. gxh3 {[%clk
00:01:06]} {[%emt 00:00:07]} cxd6 {[%clk 00:03:41]} {[%emt 00:00:31]} 38. Rxd6
{[%clk 00:01:31]} {[%emt 00:00:05]} Rg8+ {[%clk 00:04:04]} {[%emt 00:00:07]} 39.
Kf2 {[%clk 00:01:46]} {[%emt 00:00:16]} Rg6 {[%clk 00:04:24]} {[%emt 00:00:10]}
40. Rd7+ {[%clk 00:01:50]} {[%emt 00:00:27]} Kg8 {[%clk 00:03:47]} {[%emt
00:01:06]} 41. Kf3 {[%clk 00:00:32]} {[%emt 00:01:46]} Kf8 {[%clk 00:01:12]}
{[%emt 00:03:07]} 42. Rb7 {[%clk 00:28:49]} {[%emt 00:02:13]} h5 {[%clk
00:27:07]} {[%emt 00:04:35]} 43. Ke4 {[%clk 00:27:35]} {[%emt 00:02:13]} Rg3
{[%clk 00:24:52]} {[%emt 00:03:15]} 44. Kxe5 {[%clk 00:26:29]} {[%emt
00:01:36]} Rxh3 {[%clk 00:24:24]} {[%emt 00:00:58]} 45. Rxb6 {[%clk 00:25:06]}
{[%emt 00:01:54]} Rxc3 {[%clk 00:24:35]} {[%emt 00:00:19]} 46. Rh6 {[%clk
00:22:22]} {[%emt 00:03:13]} Ra3 {[%clk 00:20:24]} {[%emt 00:04:42]} 47. Rxh5
{[%clk 00:20:27]} {[%emt 00:02:25]} Rxa2 {[%clk 00:20:24]} {[%emt 00:00:30]} 48.
Kd5 {[%clk 00:19:19]} {[%emt 00:01:37]} Rc2 {[%clk 00:19:21]} {[%emt 00:01:34]}
49. Rh4 {[%clk 00:18:39]} {[%emt 00:01:09]} 1/2-1/2

[Event "Swedish Chess Championship 2019: Minior-SM"]
[Site "Stiga Sports Arena, Arenatorget 1, Eskilstuna, Sweden, Sweden"]
[Date "2019.07.11"]
[Round "5.2"]
[White "Morell, Ludvig"]
[Black "Strom-Engdahl, Alexander"]
[Result "1/2-1/2"]
[TimeControl "90 minutes for 40 moves + 30 minutes for the rest of the game + 30 seconds per move from move one"]
[WhiteFideId "1736779"]
[BlackFideId "1741586"]
[WhiteElo "1744"]
[BlackElo "1866"]

1. e4 {[%clk 01:30:47]} {[%emt 00:00:12]} e5 {[%clk 01:30:09]} {[%emt
00:00:51]} 2. Nf3 {[%clk 01:30:41]} {[%emt 00:00:35]} Nf6 {[%clk 01:30:23]}
{[%emt 00:00:15]} 3. Nxe5 {[%clk 01:30:37]} {[%emt 00:00:38]} d6 {[%clk
01:30:45]} {[%emt 00:00:08]} 4. Nf3 {[%clk 01:31:03]} {[%emt 00:00:03]} Nxe4
{[%clk 01:31:09]} {[%emt 00:00:06]} 5. Nc3 {[%clk 01:31:29]} {[%emt 00:00:04]}
Nxc3 {[%clk 01:30:32]} {[%emt 00:01:06]} 6. dxc3 {[%clk 01:31:38]} {[%emt
00:00:21]} Be7 {[%clk 01:30:55]} {[%emt 00:00:07]} 7. Be3 {[%clk 01:32:05]}
{[%emt 00:00:04]} Nd7 {[%clk 01:28:29]} {[%emt 00:02:55]} 8. Qd2 {[%clk
01:31:40]} {[%emt 00:00:56]} O-O {[%clk 01:28:47]} {[%emt 00:00:11]} 9. O-O-O
{[%clk 01:32:01]} {[%emt 00:00:08]} c6 {[%clk 01:27:03]} {[%emt 00:02:15]} 10.
h4 {[%clk 01:30:30]} {[%emt 00:02:02]} Nc5 {[%clk 01:23:06]} {[%emt 00:04:28]}
11. Bxc5 {[%clk 01:14:13]} {[%emt 00:16:47]} dxc5 {[%clk 01:23:09]} {[%emt
00:00:27]} 12. Qe3 {[%clk 01:14:34]} {[%emt 00:00:08]} Qc7 {[%clk 01:18:38]}
{[%emt 00:05:01]} 13. Bd3 {[%clk 01:11:54]} {[%emt 00:03:10]} f5 {[%clk
00:49:59]} {[%emt 00:29:10]} 14. Bc4+ {[%clk 00:56:18]} {[%emt 00:16:05]} Kh8
{[%clk 00:50:13]} {[%emt 00:00:17]} 15. Ng5 {[%clk 00:43:50]} {[%emt 00:12:57]}
f4 {[%clk 00:39:47]} {[%emt 00:10:57]} 16. Qf3 {[%clk 00:41:58]} {[%emt
00:02:21]} Bxg5 {[%clk 00:36:16]} {[%emt 00:04:02]} 17. hxg5 {[%clk 00:41:33]}
{[%emt 00:00:54]} g6 {[%clk 00:35:52]} {[%emt 00:00:54]} 18. g4 {[%clk
00:39:09]} {[%emt 00:02:53]} b5 {[%clk 00:16:34]} {[%emt 00:19:49]} 19. Bd3
{[%clk 00:36:52]} {[%emt 00:02:47]} Kg8 {[%clk 00:15:02]} {[%emt 00:02:03]} 20.
Qh3 {[%clk 00:32:35]} {[%emt 00:04:47]} Qg7 {[%clk 00:15:10]} {[%emt 00:00:23]}
21. Be4 {[%clk 00:31:48]} {[%emt 00:01:15]} Be6 {[%clk 00:13:05]} {[%emt
00:02:37]} 22. Rd6 {[%clk 00:22:56]} {[%emt 00:09:21]} Bd5 {[%clk 00:12:31]}
{[%emt 00:01:05]} 23. Bxd5+ {[%clk 00:20:13]} {[%emt 00:03:12]} cxd5 {[%clk
00:12:54]} {[%emt 00:00:07]} 24. Rxd5 {[%clk 00:19:50]} {[%emt 00:00:52]} Rac8
{[%clk 00:09:42]} {[%emt 00:03:43]} 25. Qh6 {[%clk 00:16:08]} {[%emt 00:04:04]}
Qf7 {[%clk 00:09:04]} {[%emt 00:01:16]} 26. Rd6 {[%clk 00:15:42]} {[%emt
00:00:54]} Rc7 {[%clk 00:06:48]} {[%emt 00:02:47]} 27. Rf6 {[%clk 00:15:16]}
{[%emt 00:00:56]} Qg7 {[%clk 00:06:47]} {[%emt 00:00:31]} 28. Qxg7+ {[%clk
00:14:48]} {[%emt 00:00:58]} Rxg7 {[%clk 00:06:43]} {[%emt 00:00:35]} 29. Rxf8+
{[%clk 00:14:37]} {[%emt 00:00:41]} Kxf8 {[%clk 00:07:07]} {[%emt 00:00:06]} 30.
Re1 {[%clk 00:14:32]} {[%emt 00:00:33]} Rf7 {[%clk 00:05:11]} {[%emt 00:02:27]}
31. f3 {[%clk 00:13:26]} {[%emt 00:01:36]} Kg7 {[%clk 00:05:13]} {[%emt
00:00:28]} 32. Re5 {[%clk 00:13:20]} {[%emt 00:00:36]} Rc7 {[%clk 00:05:36]}
{[%emt 00:00:09]} 33. Kd2 {[%clk 00:13:24]} {[%emt 00:00:24]} a6 {[%clk
00:03:30]} {[%emt 00:02:38]} 34. Kd3 {[%clk 00:12:35]} {[%emt 00:01:19]} Rd7+
{[%clk 00:03:53]} {[%emt 00:00:07]} 35. Ke4 {[%clk 00:12:57]} {[%emt 00:00:04]}
Rd2 {[%clk 00:04:11]} {[%emt 00:00:17]} 36. Rxc5 {[%clk 00:12:45]} {[%emt
00:00:41]} Rxc2 {[%clk 00:04:38]} {[%emt 00:00:03]} 37. Rc6 {[%clk 00:12:48]}
{[%emt 00:00:26]} a5 {[%clk 00:04:41]} {[%emt 00:00:29]} 38. Rc7+ {[%clk
00:12:36]} {[%emt 00:00:42]} Kf8 {[%clk 00:04:37]} {[%emt 00:00:33]} 39. Rxh7
{[%clk 00:12:00]} {[%emt 00:01:06]} Rxb2 {[%clk 00:04:34]} {[%emt 00:00:34]} 40.
Rb7 {[%clk 00:12:12]} {[%emt 00:00:17]} Rxa2 {[%clk 00:04:44]} {[%emt
00:00:20]} 41. Rxb5 {[%clk 00:12:33]} {[%emt 00:00:09]} Ra4+ {[%clk 00:05:07]}
{[%emt 00:00:07]} 42. Ke5 {[%clk 00:12:41]} {[%emt 00:00:19]} Ra1 {[%clk
00:01:19]} {[%emt 00:04:20]} 43. Kf6 {[%clk 00:10:55]} {[%emt 00:02:16]} Ke8
{[%clk 00:01:42]} {[%emt 00:00:08]} 44. Kxg6 {[%clk 00:10:47]} {[%emt
00:00:38]} Rf1 {[%clk 00:01:09]} {[%emt 00:01:03]} 45. Rxa5 {[%clk 00:10:53]}
{[%emt 00:00:24]} Rxf3 {[%clk 00:01:33]} {[%emt 00:00:06]} 46. Kf6 {[%clk
00:10:29]} {[%emt 00:00:52]} Rxc3 {[%clk 00:01:58]} {[%emt 00:00:06]} 47. Rf5
{[%clk 00:10:31]} {[%emt 00:00:27]} f3 {[%clk 00:01:58]} {[%emt 00:00:32]} 48.
g6 {[%clk 00:10:46]} {[%emt 00:00:14]} Kf8 {[%clk 00:02:23]} {[%emt 00:00:05]}
49. Kg5+ {[%clk 00:10:31]} {[%emt 00:00:45]} Kg8 {[%clk 00:02:24]} {[%emt
00:00:30]} 50. Kh6 {[%clk 00:10:33]} {[%emt 00:00:26]} Rc4 {[%clk 00:25:23]}
{[%emt 00:07:32]} 51. Kh5 {[%clk 00:38:20]} {[%emt 00:02:43]} Rc3 {[%clk
00:25:33]} {[%emt 00:00:20]} 52. g5 {[%clk 00:38:32]} {[%emt 00:00:18]} Kg7
{[%clk 00:25:39]} {[%emt 00:00:24]} 53. Rf7+ {[%clk 00:36:48]} {[%emt
00:02:10]} Kg8 {[%clk 00:26:03]} {[%emt 00:00:10]} 54. Kg4 {[%clk 00:36:01]}
{[%emt 00:01:14]} Rb3 {[%clk 00:24:54]} {[%emt 00:01:41]} 1/2-1/2

[Event "Swedish Chess Championship 2019: Minior-SM"]
[Site "Stiga Sports Arena, Arenatorget 1, Eskilstuna, Sweden, Sweden"]
[Date "2019.07.11"]
[Round "5.3"]
[White "Tran, Alva Ling"]
[Black "Gerdes, Sebastian"]
[Result "1/2-1/2"]
[TimeControl "90 minutes for 40 moves + 30 minutes for the rest of the game + 30 seconds per move from move one"]
[WhiteFideId "1753223"]
[BlackFideId "1745697"]
[WhiteElo "1712"]
[BlackElo "1529"]

1. e4 {[%clk 01:30:58]} {[%emt 00:00:02]} c5 {[%clk 01:30:44]} {[%emt
00:00:17]} 2. Nc3 {[%clk 01:31:20]} {[%emt 00:00:08]} g6 {[%clk 01:31:07]}
{[%emt 00:00:07]} 3. g3 {[%clk 01:31:33]} {[%emt 00:00:16]} Bg7 {[%clk
01:31:27]} {[%emt 00:00:11]} 4. Bg2 {[%clk 01:31:52]} {[%emt 00:00:11]} Nc6
{[%clk 01:31:42]} {[%emt 00:00:15]} 5. Nge2 {[%clk 01:31:43]} {[%emt 00:00:38]}
d6 {[%clk 01:31:54]} {[%emt 00:00:18]} 6. d3 {[%clk 01:31:36]} {[%emt
00:00:38]} e6 {[%clk 01:32:19]} {[%emt 00:00:05]} 7. O-O {[%clk 01:31:39]}
{[%emt 00:00:26]} Nge7 {[%clk 01:32:34]} {[%emt 00:00:15]} 8. Be3 {[%clk
01:31:21]} {[%emt 00:00:48]} O-O {[%clk 01:32:36]} {[%emt 00:00:29]} 9. Qd2
{[%clk 01:28:45]} {[%emt 00:03:06]} Rb8 {[%clk 01:32:03]} {[%emt 00:01:02]} 10.
Bh6 {[%clk 01:27:44]} {[%emt 00:01:31]} b5 {[%clk 01:31:22]} {[%emt 00:01:13]}
11. Bxg7 {[%clk 01:27:35]} {[%emt 00:00:39]} Kxg7 {[%clk 01:31:47]} {[%emt
00:00:05]} 12. f4 {[%clk 01:24:54]} {[%emt 00:03:10]} d5 {[%clk 01:30:18]}
{[%emt 00:02:00]} 13. f5 {[%clk 01:14:30]} {[%emt 00:10:54]} exf5 {[%clk
01:30:41]} {[%emt 00:00:07]} 14. exd5 {[%clk 01:14:51]} {[%emt 00:00:09]} Nb4
{[%clk 01:30:51]} {[%emt 00:00:20]} 15. d4 {[%clk 01:10:29]} {[%emt 00:04:51]}
c4 {[%clk 01:28:07]} {[%emt 00:03:14]} 16. Nf4 {[%clk 01:05:46]} {[%emt
00:05:13]} Bb7 {[%clk 01:26:46]} {[%emt 00:01:52]} 17. Nxb5 {[%clk 01:01:49]}
{[%emt 00:04:27]} Nbxd5 {[%clk 01:27:01]} {[%emt 00:00:14]} 18. Nxd5 {[%clk
00:59:48]} {[%emt 00:02:32]} Bxd5 {[%clk 01:27:12]} {[%emt 00:00:19]} 19. Na3
{[%clk 00:59:24]} {[%emt 00:00:54]} Bxg2 {[%clk 01:26:41]} {[%emt 00:01:00]} 20.
Kxg2 {[%clk 00:59:47]} {[%emt 00:00:06]} Rxb2 {[%clk 01:26:58]} {[%emt
00:00:14]} 21. Qc3 {[%clk 00:58:52]} {[%emt 00:01:25]} Rb6 {[%clk 01:23:10]}
{[%emt 00:04:17]} 22. Qxc4 {[%clk 00:57:06]} {[%emt 00:02:17]} Nd5 {[%clk
01:18:02]} {[%emt 00:05:38]} 23. Rfe1 {[%clk 00:53:03]} {[%emt 00:04:34]} f4
{[%clk 01:16:39]} {[%emt 00:01:53]} 24. Qd3 {[%clk 00:42:50]} {[%emt 00:10:42]}
Rf6 {[%clk 01:10:05]} {[%emt 00:07:03]} 25. c4 {[%clk 00:39:32]} {[%emt
00:03:49]} f3+ {[%clk 01:07:17]} {[%emt 00:03:18]} 26. Kf2 {[%clk 00:39:17]}
{[%emt 00:00:45]} Nb4 {[%clk 01:02:50]} {[%emt 00:04:57]} 27. Qd2 {[%clk
00:38:39]} {[%emt 00:01:06]} Qd7 {[%clk 00:51:55]} {[%emt 00:11:26]} 28. Qxb4
{[%clk 00:19:14]} {[%emt 00:19:55]} Qxd4+ {[%clk 00:52:14]} {[%emt 00:00:11]}
29. Kf1 {[%clk 00:19:30]} {[%emt 00:00:14]} Qd3+ {[%clk 00:52:41]} 1/2-1/2